Cogmind - Beta 15 @@@ ROGUE MODE // 2025.08.17 @ 04:42:58 Player: KeKe Result: Destroyed by HT-ZW8(g) via exploding Plasma Injector Performance ------------- Evolutions (0) 0 Regions Visited (2) 400 Robots Destroyed (15) 75 Value Destroyed (369) 369 Prototype IDs (0) 0 Alien Tech Used (0) 0 Bonus (60) 60 TOTAL SCORE: 904 Bonus ------- Follower Combat Kills 60 Cogmind --------- Core Integrity 0/250 Matter 300/300 Energy 124/125 System Corruption 0% Temperature Cool (26) Movement Flying (37) Location -10/Mines Parts ------- > --- POWER (1) -------- Light Ion Engine > --- PROPULSION (2) --- Flight Unit Flight Unit > --- UTILITY (2) ------ Machine Analyzer Targeting Computer > --- WEAPON (2) ------- Light Assault Rifle Mining Laser > --- INVENTORY (5) ---- Wheel Compact Wheel Compact Wheel Compact Wheel Peak State ------------ > --- POWER ------------ Light Ion Engine > --- PROPULSION ------- Flight Unit Flight Unit > --- UTILITY ---------- Machine Analyzer Targeting Computer > --- WEAPON ----------- Light Assault Rifle Mining Laser > --- INVENTORY -------- Wheel Compact Wheel Compact Wheel Compact Wheel [Rating: 9] Favorites ----------- Power Light Ion Engine Engine Light Ion Engine Propulsion Aluminum Leg Leg Aluminum Leg Wheel Wheel Flight Unit Flight Unit Utility Targeting Computer Storage Small Storage Unit Processor Targeting Computer Weapon Light Assault Rifle Energy Gun Small Laser Ballistic Gun Light Assault Rifle Special Weapon Mining Laser Build | -11 -10 -10 ------- Run | Yrd Mat Min Slots Evolved . | . . . Power . | . . . Propulsion . | . . . Utility . | . . . Weapon . | . . . Parts Attached 16 | . 15 1 Power 2 | . 2 . Engine 2 | . 2 . Core . | . . . Reactor . | . . . Propulsion 7 | . 7 . Treads . | . . . Leg . | . . . Wheel 4 | . 4 . Hover . | . . . Flight 3 | . 3 . Utility 3 | . 3 . Device . | . . . Storage . | . . . Processor 3 | . 3 . Hackware . | . . . Protection . | . . . Artifact . | . . . Weapon 4 | . 3 1 Energy Gun 2 | . 2 . Energy Cannon . | . . . Ballistic Gun 1 | . 1 . Ballistic Cannon . | . . . Launcher . | . . . Special Weapon 1 | . . 1 Impact Weapon . | . . . Slashing Weapon . | . . . Piercing Weapon . | . . . Special Melee Weapon . | . . . Unidentified Prototypes . | . . . Parts Lost 6 | . 6 . Power 1 | . 1 . Propulsion 3 | . 3 . Utility . | . . . Weapon 2 | . 2 . Highest Loss Streak 4 | . 4 . To Critical Strikes . | . . . Average Backups 4 | 6 3 4 Power . | 1 . . Propulsion 2 | 4 2 4 Utility . | . . . Weapon . | 1 . . Tool/Special . | . . . Unused Backups 3 | . 1 2 Power . | . . . Propulsion 2 | . . 2 Utility 1 | . 1 . Weapon . | . . . Tool/Special . | . . . Average Slot Usage (%) 71 | . 69 100 Engine 13 | . 13 14 Leg 6 | . 7 . Wheel 7 | . 8 . Flight 7 | . 5 28 Storage 3 | . 3 . Processor 14 | . 13 28 Energy Gun 3 | . 3 . Ballistic Gun 13 | . 13 14 Peak Build Rating 9 | 6 8 9 Average Rating 5 | 6 5 9 On Entrance 6 | 6 6 8 Naked Turns . | . . . Heaviest Build 11 | 11 11 5 Greatest Support 26 | 20 26 8 Greatest Overweight (x) 1 | . 1 . Average Overweight (x) . | . . . Largest Inventory Capacity 8 | 8 8 5 Average Capacity 5 | 8 5 5 Most Carried 8 | 7 8 4 Average Carried 3 | 6 3 4 Final Capacity 8 | 8 5 5 Final Carried 7 | 7 5 4 Class Distribution -------------------- 100% | Mutant Dominant Class ---------------- Mutant | -10/Materials Mutant | -10/Mines Resources | -11 -10 -10 ----------- Run | Yrd Mat Min Matter Collected 447 | 228 209 10 Remotely . | . . . Salvage Created 604 | 100 504 . Parts 36 | 2 34 . Haulers Intercepted . | . . . Recyclers Shooed 2 | . 2 . Parts Field Recycled . | . . . Retrieved Matter . | . . . Parts Self-Destructed . | . . . Prevented . | . . . Kills | -11 -10 -10 ------- Run | Yrd Mat Min Combat Hostiles Destroyed 8 | . 8 . Guns 8 | . 8 . Classes Destroyed 7 | 1 6 . Worker 1 | . 1 . Builder 1 | . 1 . Recycler 3 | 1 2 . Mechanic 1 | . 1 . Watcher 1 | . 1 . Swarmer 3 | . 3 . Grunt 5 | . 5 . Best Kill Streak 3 | 1 3 . Combat Bots Only 3 | . 3 . Max Kills in Single Turn 1 | 1 1 . Gunslinging . | . . . Exploded . | . . . Melee . | . . . Uniques/NPCs Destroyed . | . . . Combat | -11 -10 -10 -------- Run | Yrd Mat Min Hostile Shots Fired 66 | . 66 . Missed 19 | . 19 . Hits 47 | . 47 . Projectile 47 | . 47 . Critical Strikes 2 | . 2 . Damage Taken 669 | . 590 79 Core 289 | . 210 79 Absorbed by Shields . | . . . Core Remaining (%) 100 | 100 . . Volleys Fired 116 | 7 109 . Largest 2 | 2 1 . Hottest 40 | 40 40 . Shots Fired 123 | 14 109 . Gun 123 | 14 109 . Cannon . | . . . Launcher . | . . . Special . | . . . Kinetic 88 | 14 74 . Thermal 26 | . 26 . Explosive . | . . . Electromagnetic 9 | . 9 . Robot Hit Streak 25 | 4 25 . Robot Miss Streak 4 | 2 4 . Penetration Max . | . . . Secondary Targets . | . . . Shots Hit Robots 92 | 9 83 . Core Hits 34 | 2 32 . Critical Kills . | . . . Critical Parts Destroyed . | . . . Critical Strikes 1 | . 1 . Corrupt 1 | . 1 . Melee Attacks . | . . . Impact . | . . . Slashing . | . . . Piercing . | . . . Sneak Attacks . | . . . Combat Hostiles . | . . . Follow-up Attacks . | . . . Damage Inflicted 833 | 103 730 . Guns 833 | 103 730 . Cannons . | . . . Explosions . | . . . Melee . | . . . Ramming . | . . . Kinetic 593 | 103 490 . Thermal 154 | . 154 . Explosive . | . . . Electromagnetic 86 | . 86 . Impact . | . . . Slashing . | . . . Piercing . | . . . Highest Corruption . | . . . Average Corruption . | . . . Corruption Purged . | . . . Corruption Blocked . | . . . Overload Shots . | . . . Overflow Damage . | . . . Projectiles . | . . . Explosions . | . . . Melee . | . . . Knockbacks . | . . . Impact . | . . . Kinetic . | . . . Secondary . | . . . Self-Inflicted Damage . | . . . Shots . | . . . Rammed . | . . . Targets Rammed . | . . . Kicked . | . . . Crushed . | . . . Highest Temperature 81 | . 81 . Average Temperature 19 | . 19 . Received Heat Transfer 327 | . 303 24 Siege Activations . | . . . Martial Activations . | . . . Shielding Activations . | . . . Robots Disrupted . | . . . Combat Hostiles . | . . . Robots Corrupted . | . . . Combat Hostiles . | . . . Parts Fried . | . . . Impact Corruptions . | . . . Robots Melted . | . . . Combat Hostiles . | . . . Parts Melted . | . . . Heat Transferred 350 | . 350 . Parts Sabotaged . | . . . Parts Stolen . | . . . Parts Stripped . | . . . Power Chain Reactions . | . . . Alert | -11 -10 -10 ------- Run | Yrd Mat Min Maximum Alert Level . | . . . Low Security (%) 100 | 100 100 100 Level 1 . | . . . Level 2 . | . . . Level 3 . | . . . Level 4 . | . . . Level 5 . | . . . High Security . | . . . Max Security . | . . . Peak Influence 62 | 5 62 51 Initial 17 | . . 17 Average 15 | 1 17 25 Influence Increases 457 | 5 237 215 Destroy 0b10 Robot/C 200 | . 160 40 Destroy 0b10 Robot/NC 35 | 5 30 . Destroy Leader 42 | . 32 10 Allied During Kill 6 | . . 6 Disable Machine 135 | . . 135 Destroy Structure 24 | . . 24 Lose Combat Pursuer 15 | . 15 . Influence Decreases 235 | 5 191 39 Entered New Map 29 | . . 29 Time Decay 176 | 5 161 10 Lost Part 30 | . 30 . Squads Dispatched . | . . . Investigation . | . . . Extermination . | . . . Reinforcement . | . . . Assault . | . . . Garrison . | . . . Intercept . | . . . Searches Triggered . | . . . Construction Impeded . | . . . Haulers Reinforced . | . . . Active Scanning Responses . | . . . Cargo Convoy Interrupts . | . . . Stealth | -11 -10 -10 --------- Run | Yrd Mat Min Distress Signals 2 | . 2 . Communications Jammed . | . . . Distress Signals . | . . . Times Spotted 21 | . 19 2 Peak Tracking Total 4 | . 4 2 Tactical Retreats 1 | . 1 . Traps | -11 -10 -10 ------- Run | Yrd Mat Min Traps Triggered . | . . . Indirectly . | . . . Trap Hack Attempts . | . . . Triggered . | . . . Disarmed . | . . . Reprogrammed . | . . . Reused . | . . . Traps Extracted . | . . . Installed . | . . . Triggered . | . . . Machines | -11 -10 -10 ---------- Run | Yrd Mat Min Machines Disabled 9 | . . 9 Max in Single Turn . | . . . Machines Repaired . | . . . Machines Dismantled . | . . . Machines Sabotaged . | . . . Overloaded Fab Kills . | . . . Hacking | -11 -10 -10 --------- Run | Yrd Mat Min Machines Accessed 2 | . 2 . Terminals 2 | . 2 . Fabricators . | . . . Repair Stations . | . . . Recycling Units . | . . . Scanalyzers . | . . . Garrison Access . | . . . Total Hacks 3 | . 3 . Successful 2 | . 2 . Failed 1 | . 1 . Catastrophic . | . . . Database Lockouts . | . . . Manual . | . . . Terminals 3 | . 3 . Fabricators . | . . . Repair Stations . | . . . Recycling Units . | . . . Scanalyzers . | . . . Garrison Access . | . . . Terminal Hacks 2 | . 2 . Locate Traps 2 | . 2 . Fabricator Hacks . | . . . Repair Station Hacks . | . . . Recycling Unit Hacks . | . . . Scanalyzer . | . . . Garrison Access Hacks . | . . . Unauthorized Hacks . | . . . Terminals . | . . . Fabricators . | . . . Repair Stations . | . . . Recycling Units . | . . . Scanalyzers . | . . . Garrison Access . | . . . Data Cores Recovered . | . . . Used . | . . . Hacking Detections 1 | . 1 . Full Trace Events . | . . . Feedback Events . | . . . Feedback Blocked . | . . . Robot Schematics Acquired . | . . . Robots Built . | . . . Authchips . | . . . Time . | . . . Total Robot Build Rating . | . . . Part Schematics Acquired . | . . . Parts Built . | . . . Authchips . | . . . Time . | . . . Total Part Build Rating . | . . . Parts Repaired . | . . . Time . | . . . Parts Recycled . | . . . Recycled Matter . | . . . Retrieved Matter . | . . . Retrieved Components . | . . . Parts Scanalyzed . | . . . Part Schematics Acquired . | . . . Parts Damaged . | . . . Bothacking | -11 -10 -10 ------------ Run | Yrd Mat Min Used RIF Installer . | . . . Robots Hacked . | . . . Non-combat . | . . . Combat . | . . . Robot Hacks Applied . | . . . Relay Couplers Released . | . . . Fabnet Peak Effective % . | . . . Robots Rewired . | . . . Allies Hacked . | . . . Hacks Repelled . | . . . Allies | -11 -10 -10 -------- Run | Yrd Mat Min Total Allies 2 | . . 2 Largest Group 2 | . . 2 Highest-Rated Group 48 | . . 48 Highest-Rated Ally 31 | . . 31 Total Orders . | . . . Ally Attacks 6 | . . 6 Total Damage 301 | . . 301 Kills 2 | . . 2 Allies Corrupted . | . . . Allies Melted . | . . . Intel | -11 -10 -10 ------- Run | Yrd Mat Min Active Infowar (turns) 131 | . 108 23 Machine Analysis 131 | . 108 23 Robot Analysis Total . | . . . Derelict Logs Recovered . | . . . Drone Launches . | . . . Drone Recoveries . | . . . Exploration | -11 -10 -10 ------------- Run | Yrd Mat Min Turns Passed 660 | 69 568 23 Spaces Moved 480 | 41 405 34 Core 17 | . 17 . Treads . | . . . Legs 154 | 41 113 . Wheels 85 | . 85 . Hover . | . . . Flight 224 | . 190 34 Fastest Speed 37 | 120 37 37 Average Speed 75 | 120 74 37 Slowest Speed 120 | 120 120 37 Overloaded Moves . | . . . Propulsion Burnouts . | . . . Robots Hopped 5 | . 5 . Potential Cave-ins . | . . . Cave-ins Triggered . | . . . Exploration Rate (%) 28 | 4 64 17 Regions Visited 2 Branch Regions 1 Pre-discovered Areas . | . . . Known Exits Taken . | . . . Unknown Exits Taken 2 | 1 1 . Scrap Searched 1 | . . 1 Spaces Dug . | . . . Terrain Destroyed . | . . . Melee . | . . . Projectile . | . . . AOE . | . . . Terrain Rammed . | . . . Walls Destroyed . | . . . Machines Disabled . | . . . Actions | -11 -10 -10 --------- Run | Yrd Mat Min Total 664 | 48 572 44 Wait 38 | . 29 9 Move 469 | 40 395 34 Hop 4 | . 4 . Pick Up 9 | 1 8 . Fast Attach 5 | . 5 . Attach 10 | . 9 1 Detach 3 | . 3 . Swap 2 | . 2 . Drop 8 | . 8 . Fire 116 | 7 109 . Melee . | . . . Ram . | . . . Kick . | . . . Crush . | . . . Escape Stasis . | . . . Rewire . | . . . Trap . | . . . Miscellaneous . | . . . Route ------- -11/Scrapyard -10/Materials (discovered 3 exits: [*Mat] / [*Min x2]) -10/Mines History --------- Turn | Location | Event 1 | -11/Scrapyard | Discovered new exit (range 2) 70 | -11/Scrapyard | Entered Materials 301 | -10/Materials | Discovered new exit (range 8) 318 | -10/Materials | Build established: Mutant 352 | -10/Materials | Discovered new exit (range 16) 406 | -10/Materials | Core integrity fell below 50% 445 | -10/Materials | Lost 4 parts (1p2n1w) 547 | -10/Materials | Discovered new exit (range 7) 570 | -10/Materials | Derelicts attacked the area 586 | -10/Materials | Core integrity fell below 20% 638 | -10/Materials | Entered Mines 661 | -10/Mines | Destroyed by HT-ZW8(g) via exploding Plasma Injector Last Messages --------------- 00582_ S-10 Pest destroyed. 00587_ K-01 Serf collects debris. 00595_ S-10 Pest destroyed. 00598_ Acquired Flight Unit. 00605_ Acquired 31 matter. 00618_ >> Machine Analyzer network decryption results: 00618_ Recycling Unit x1 00634_ Machine disabled. 00636_ Acquired Mining Laser. LOCATION=UNKNOWN GOAL=ESCAPE 00639_ A pair of derelicts emerge from the shadows: "We're, um, lost. You wouldn't happen to know the way out of here, would you?" 00654_ Searching scrap... 00654_ Found Sml. Matter Pod. 00654_ Found Sml. Battery. 00654_ Found 69 Matter. 00654_ G-47 Trooper destroyed. 00655_ Acquired 10 matter. 00661_ Plasma Injector explodes. Map ----- +----------------------------------------------------+ | | | | | ????????????????????????????????????? | | ????????????????????????????????????? | | ????????????????????????????????????? | | ????????????????????????????????????? | | ????????????????????????????????????? | | ????????????????????????????????????? | | ????????????????????????????????????? | | ????????????????????????????????????? | | ????????????????????????????????????? | | ????????????????????????????????????? | | ????????????????????????????????????? | | ????????????????????????????????????? | | ????????????????????????????????????? | | ????????????????????????????????????? | | ??? ???????????#?????????????????##?? | | ?## ???????????? ??????????????? #?? | | ## ???????????? #####???????? #?? | | ????????????? #??????? #??? | | ?????????????#t #?????? #???? | | ?????######### ####### ###??? | | ? ?????# #??? | | ?? ?????# t #??? | | ???# ?????# #??? | | ???# #????# @ #??? | | ???# ##?#; """ #??? | | ???# ###; """ #??? | | ???# ## """ ???? | | ???# ! ???? | | ???# % #??? | | ???# ####g #??? | | ???## ##?#%= #??? | | ????## #?# #??? | | ????## #?##; ;;;;#####??? | | ????# #????# # # ###??????? | | ????# #????######### #?##????????? | | ????## ##???????????##????????????? | | ?????## #?????????????????????????? | | ??????## ##?????????????????????????? | | ???????###??????????????????????????? | | ????????????????????????????????????? | | ????????????????????????????????????? | | ????????????????????????????????????? | | ????????????????????????????????????? | | ????????????????????????????????????? | | ????????????????????????????????????? | | ????????????????????????????????????? | | ????????????????????????????????????? | | ????????????????????????????????????? | +----------------------------------------------------+ Best States ------------- Heat Dissipation 25 Energy Generation 10 Energy Capacity 125 Matter Stores 300 Matter Capacity 300 Sight Range 16 Terrain Scan Density 10 Evasion (%) 62 Targeting Accuracy 10 Item Schematics ----------------- None Robot Schematics ------------------ None Fabricated ------------ Nothing Repaired ---------- Nothing Alien Tech Used ----------------- None Achievements -------------- None Challenges ------------ None Game ------ Seed ModifiedDisruptionDoomcannon Manual? 0 Play Time 00:11:33 Cumulative 107.3 hours Start 2025.08.17 @ 03:50:19 End 2025.08.17 @ 04:42:58 Sessions 1 Manual Loads 0 Difficulty Rogue Special Mode None Game No. 105 Rogue 105 Adventurer 0 Explorer 0 Win Type - Total 1 Types 1/0/0/0/0/0/0/0/0/0 Lore% 57 Gallery% 47 Achievement% 47 Wizard Run 0 Options --------- Layout 0 ASCII 0 Keyboard 0 Movement Mouse Keybinds 0 Fullscreen 2 Font 18/X11 Map View 76x50 Zoom Use 0% Tactical HUD 1 Map Filters NONE Filters NONE Steam 1 RUN: 47d90712-4f67-4f27-b773-9fb612e139fd